fUST/lending_fUST_20250614
["ID","MTS","AMOUNT","RATE_DAILY","PERIOD"]
[365768425,1749897038130,-500.0,0.00021093,2]
[365768426,1749897038139,-500.0,0.00021093,2]
[365768427,1749897038149,-500.0,0.00021093,2]
[365768428,1749897038158,-500.0,0.00021093,2]
[365768429,1749897038167,-500.0,0.00021093,2]
[365768430,1749897038175,-272.76959345,0.00021093,2]
[365768431,1749897038185,-500.0,0.00021093,2]
[365768432,1749897038194,-159.92061473,0.00021768,2]
[365768433,1749897038204,-183.38125239,0.00022737,2]
[365768434,1749897038213,-979.10238154,0.00023024,2]
[365768435,1749897038223,-261.93433032,0.00023558,4]
[365768436,1749897038232,-617.05,0.00023558,4]
[365768437,1749897038241,-460.0,0.00023559,4]
[365768438,1749897038250,-160.0,0.0002356,2]
[365768439,1749897038259,-1003.4,0.00023561,4]
[365768440,1749897038269,-460.0,0.00023561,4]
[365768441,1749897038278,-460.0,0.00023561,4]
[365768442,1749897038289,-460.0,0.00023561,4]
[365768443,1749897038298,-460.0,0.00023561,4]
[365768444,1749897038308,-460.0,0.00023561,4]
[365768445,1749897038318,-151.0,0.00023607,7]
[365768446,1749897038328,-426.976756,0.00023607,7]
[365768447,1749897038337,-426.976756,0.00023607,7]
[365768448,1749897038346,-325.950769,0.00023607,7]
[365768449,1749897038355,-325.950769,0.00023607,7]
[365768450,1749897038365,-449.0,0.00023627,2]
[365768451,1749897038374,-14862.92741495,0.00023673,2]
[365768452,1749897038384,-325.26,0.00023688,10]
[365768453,1749897038393,-330.29927154,0.00023693,9]
[365768454,1749897038402,-64401.28788281,0.00023698,2]
[365768455,1749897038411,-3000.0,0.000237,2]
[365768456,1749897038420,-979.10238154,0.000237,2]
[365768457,1749897038429,-3000.0,0.0002371,2]
[365768458,1749897038439,-255.740575,0.0002371,7]
[365768459,1749897038449,-151.909552,0.0002371,7]
[365768460,1749897038458,-236.182842,0.0002371,7]
[365768461,1749897038467,-162.623748,0.0002371,7]
[365768462,1749897038476,-162.623748,0.0002371,7]
[365768463,1749897038485,-151.0,0.0002371,7]
[365768464,1749897038495,-280.633622,0.0002371,7]
[365768465,1749897038504,-151.0,0.0002371,7]
[365768466,1749897038513,-845.10789306,0.0002371,7]
[365768467,1749897038522,-151.0,0.0002371,7]
[365768468,1749897038532,-12533.30537164,0.0002371,7]
[365768469,1749897038541,-213.28201367,0.0002371,7]
[365768470,1749897038550,-168.0,0.00023718,2]
[365768471,1749897038559,-3000.0,0.0002372,2]
[365768472,1749897038568,-3000.0,0.0002373,2]
[365768473,1749897038577,-3000.0,0.0002374,2]
[365768474,1749897038586,-3000.0,0.0002375,2]
[365768475,1749897038595,-3000.0,0.0002376,2]
[365768476,1749897038604,-3000.0,0.0002377,2]
[365768477,1749897038613,-500.0,0.00023773,2]
[365768478,1749897038622,-500.0,0.00023773,2]
[365768479,1749897038631,-500.0,0.00023773,2]
[365768480,1749897038639,-500.0,0.00023773,2]
[365768481,1749897038649,-500.0,0.00023773,2]
[365768482,1749897038658,-964.0,0.00023776,2]
[365768483,1749897038667,-405.0,0.00023776,2]
[365768484,1749897038676,-405.0,0.00023776,2]
[365768485,1749897038685,-3000.0,0.0002378,2]
[365768486,1749897038694,-64290.35603124,0.00023788,2]
[365768487,1749897038703,-155.947967,0.00023788,7]
[365768488,1749897038712,-151.0,0.00023788,7]
[365768489,1749897038721,-264.90877,0.00023788,7]
[365768490,1749897038730,-3000.0,0.0002379,2]
[365768491,1749897038740,-5813.61310464,0.000238,2]
[365768492,1749897038749,-8770.86689581,0.000238,2]
[365768493,1749897038759,-144272.3245476,0.000238,3]
[365768494,1749897038767,-2195.33,0.000238,2]
[365768495,1749897038777,-91144.58,0.000238,2]
[365768496,1749897038786,-151.0,0.000238,7]
[365768497,1749897038794,-156.27315,0.000238,7]
[365768498,1749897038803,-160.0,0.000238,3]
[365768499,1749897038812,-151.0,0.000238,7]
[365768500,1749897038821,-259.184029,0.000238,7]
[365768501,1749897038934,-259.184029,0.000238,7]
[365768502,1749897038943,-259.184029,0.000238,7]
[365768503,1749897038954,-259.184029,0.000238,7]
[365768504,1749897038964,-3000.0,0.000238,2]
[365768505,1749897038973,-151.0,0.000238,7]
[365768506,1749897038983,-151.0,0.000238,7]
[365768507,1749897038992,-151.0,0.000238,7]
[365768508,1749897039001,-151.0,0.000238,7]
[365768509,1749897039010,-151.0,0.000238,7]
[365768510,1749897039019,-153.097932,0.000238,7]
[365768511,1749897039028,-151.0,0.000238,7]
[365768512,1749897039037,-151.0,0.000238,7]
[365768513,1749897039046,-162.623748,0.000238,7]
[365768514,1749897039056,-162.623748,0.000238,7]
[365768515,1749897039066,-162.623748,0.000238,7]
[365768516,1749897039075,-162.623748,0.000238,7]
[365768517,1749897039085,-162.623748,0.000238,7]
[365768518,1749897039094,-162.623748,0.000238,7]
[365768519,1749897039104,-151.0,0.000238,7]
[365768520,1749897039113,-151.0,0.000238,7]
[365768521,1749897039122,-151.0,0.000238,7]
[365768522,1749897039131,-152.680443,0.000238,7]
[365768523,1749897039140,-426.976756,0.000238,7]
[365768524,1749897039150,-426.976756,0.000238,7]
[365768525,1749897039159,-426.976756,0.000238,7]
[365768526,1749897039168,-426.976756,0.000238,7]
[365768527,1749897039177,-151.0,0.000238,7]
[365768528,1749897039186,-151.0,0.000238,7]
[365768529,1749897039195,-2118.65,0.000238,7]
[365768530,1749897039204,-151.0,0.000238,7]
[365768531,1749897039213,-151.0,0.000238,7]
[365768532,1749897039222,-151.0,0.000238,7]
[365768533,1749897039231,-193.265085,0.000238,7]
[365768534,1749897039240,-151.0,0.000238,7]
[365768535,1749897039249,-158.437226,0.000238,7]
[365768536,1749897039258,-325.950769,0.000238,7]
[365768537,1749897039268,-151.0,0.000238,7]
[365768538,1749897039277,-151.0,0.000238,8]
[365768539,1749897039287,-325.950769,0.000238,7]
[365768540,1749897039296,-325.950769,0.000238,7]
[365768541,1749897039305,-325.950769,0.000238,7]
[365768542,1749897039315,-151.0,0.000238,7]
[365768543,1749897039324,-151.0,0.000238,7]
[365768544,1749897039333,-151.0,0.000238,7]
[365768545,1749897039343,-151.0,0.000238,7]
[365768546,1749897039352,-251.57842,0.000238,7]
[365768547,1749897039361,-251.57842,0.000238,7]
[365768548,1749897039372,-251.57842,0.000238,7]
[365768549,1749897039381,-251.57842,0.000238,7]
[365768550,1749897039390,-237.722832,0.000238,7]
[365768551,1749897039399,-237.722832,0.000238,7]
[365768552,1749897039408,-151.0,0.000238,7]
[365768553,1749897039417,-151.0,0.000238,7]
[365768554,1749897039426,-151.0,0.000238,7]
[365768555,1749897039435,-151.0,0.000238,7]
[365768556,1749897039444,-151.0,0.000238,7]
[365768557,1749897039454,-151.0,0.000238,7]
[365768558,1749897039464,-151.0,0.000238,7]
[365768559,1749897039473,-151.0,0.000238,7]
[365768560,1749897039482,-151.0,0.000238,7]
[365768561,1749897039491,-151.0,0.000238,7]
[365768562,1749897039500,-151.0,0.000238,7]
[365768563,1749897039509,-151.0,0.000238,7]
[365768564,1749897039519,-151.0,0.000238,7]
[365768565,1749897039528,-151.0,0.000238,7]
[365768566,1749897039538,-151.0,0.000238,7]
[365768567,1749897039547,-161.709455,0.000238,7]
[365768568,1749897039557,-152.027995,0.000238,7]
[365768569,1749897039567,-151.0,0.000238,7]
[365768570,1749897039576,-151.0,0.000238,7]
[365768571,1749897039586,-151.0,0.000238,7]
[365768572,1749897039595,-151.0,0.000238,7]
[365768573,1749897039604,-151.0,0.000238,7]
[365768574,1749897039613,-151.0,0.000238,7]
[365768575,1749897039622,-151.0,0.000238,7]
[365768576,1749897039632,-151.0,0.000238,7]
[365768577,1749897039642,-151.0,0.000238,7]
[365768578,1749897039652,-151.0,0.000238,7]
[365768579,1749897039661,-151.0,0.000238,7]
[365768580,1749897039671,-151.0,0.000238,7]
[365768581,1749897039680,-151.0,0.000238,7]
[365768582,1749897039690,-151.0,0.000238,7]
[365768583,1749897039700,-151.0,0.000238,7]
[365768584,1749897039709,-151.0,0.000238,7]
[365768585,1749897039719,-167.82525183,0.000238,2]
[365768586,1749897039728,-176.270648,0.000238,7]
[365768587,1749897039738,-176.270648,0.000238,7]
[365768588,1749897039747,-176.270648,0.000238,7]
[365768589,1749897039757,-176.270648,0.000238,7]
[365768590,1749897039767,-151.0,0.000238,7]
[365768591,1749897039776,-151.0,0.000238,7]
[365768592,1749897039787,-151.0,0.000238,7]
[365768593,1749897039796,-151.708734,0.000238,7]
[365768594,1749897039806,-151.0,0.000238,7]
[365768595,1749897039815,-151.0,0.000238,7]
[365768596,1749897039824,-214.818421,0.000238,7]
[365768597,1749897039833,-151.0,0.000238,7]
[365768598,1749897039843,-214.818421,0.000238,7]
[365768599,1749897039852,-1004.679011,0.000238,2]
[365768600,1749897039861,-214.818421,0.000238,7]
[365768601,1749897039873,-262.319589,0.000238,7]
[365768602,1749897039882,-214.818421,0.000238,7]
[365768603,1749897039891,-160.0,0.000238,3]
[365768604,1749897039900,-151.0,0.000238,7]
[365768605,1749897039911,-279.057317,0.000238,7]
[365768606,1749897039921,-160.0,0.000238,3]
[365768607,1749897039930,-151.0,0.000238,7]
[365768608,1749897039941,-151.0,0.000238,7]
[365768609,1749897039951,-151.0,0.000238,7]
[365768610,1749897039960,-151.0,0.000238,7]
[365768611,1749897039970,-152.995728,0.000238,7]
[365768612,1749897039979,-151.0,0.000238,7]
[365768613,1749897039989,-151.0,0.000238,7]
[365768614,1749897039999,-151.0,0.000238,7]
[365768616,1749897040010,-845.10789306,0.000238,3]
[365768618,1749897040021,-360.856994,0.000238,7]
[365768619,1749897040030,-360.856994,0.000238,7]
[365768620,1749897040040,-845.10789306,0.000238,7]
[365768621,1749897040050,-12533.30537164,0.000238,3]
[365768622,1749897040059,-151.0,0.000238,7]
[365768623,1749897040068,-151.0,0.000238,7]
[365768624,1749897040077,-151.0,0.000238,7]
[365768625,1749897040087,-151.0,0.000238,7]
[365768626,1749897040096,-151.0,0.000238,7]
[365768627,1749897040106,-151.0,0.000238,7]
[365768629,1749897040115,-155.239085,0.000238,7]
[365768630,1749897040124,-360.856994,0.000238,7]
[365768631,1749897040134,-360.856994,0.000238,7]
[365768632,1749897040144,-13366.24786553,0.000238,2]
[365768633,1749897040154,-50026.0598166,0.000238,3]
[365768634,1749897040163,-3993.383413,0.000238,2]
[365768635,1749897040173,-3993.383413,0.000238,2]
[365768636,1749897040184,-151.0,0.000238,7]
[365768637,1749897040193,-151.0,0.000238,7]
[365768638,1749897040204,-3993.383413,0.000238,2]
[365768639,1749897040213,-3993.383413,0.000238,2]
[365768640,1749897040223,-170.30392,0.000238,7]
[365768641,1749897040232,-151.0,0.000238,7]
[365768642,1749897040241,-170.30392,0.000238,7]
[365768643,1749897040250,-151.0,0.000238,7]
[365768644,1749897040260,-170.30392,0.000238,7]
[365768645,1749897040269,-170.30392,0.000238,7]
[365768647,1749897040279,-424.40141186,0.000238,3]
[365768649,1749897040288,-151.0,0.000238,7]
[365768651,1749897040297,-154.894672,0.000238,7]
[365768653,1749897040306,-151.51248,0.000238,7]
[365768655,1749897040316,-151.0,0.000238,7]
[365768657,1749897040325,-213.28201367,0.000238,3]
[365768659,1749897040334,-151.0,0.000238,7]
[365768661,1749897040344,-835.41710878,0.000238,3]
[365768663,1749897040353,-151.0,0.000238,7]
[365768665,1749897040363,-229.82479369,0.000238,3]
[365768667,1749897040371,-151.0,0.000238,7]
[365768669,1749897040380,-151.0,0.000238,7]
[365768671,1749897040389,-686.659296,0.000238,7]
[365768673,1749897040399,-686.659296,0.000238,7]
[365768675,1749897040408,-151.0,0.000238,7]
[365768677,1749897040417,-151.0,0.000238,7]
[365768679,1749897040426,-686.659296,0.000238,7]
[365768681,1749897040435,-686.659296,0.000238,7]
[365768683,1749897040445,-3000.0,0.0002381,2]
[365768685,1749897040455,-151.0,0.00023816,7]
[365768687,1749897040464,-151.0,0.00023816,7]
[365768689,1749897040474,-251.57842,0.00023816,7]
[365768691,1749897040483,-251.57842,0.00023816,7]
[365768693,1749897040492,-3000.0,0.0002382,2]
[365768695,1749897040501,-151.0,0.0002382,7]
[365768697,1749897040511,-3000.0,0.0002383,2]
[365768699,1749897040519,-181.145176,0.0002383,7]
[365768701,1749897040529,-151.0,0.0002383,7]
[365768704,1749897040538,-151.0,0.0002383,7]
[365768705,1749897040547,-151.0,0.0002383,7]
[365768708,1749897040557,-235.333613,0.0002383,7]
[365768710,1749897040566,-276.631501,0.0002383,7]
[365768712,1749897040576,-176.270648,0.0002383,7]
[365768714,1749897040585,-176.270648,0.0002383,7]
[365768716,1749897040595,-156.294833,0.0002383,7]
[365768718,1749897040605,-151.0,0.0002383,7]
[365768720,1749897040615,-214.818421,0.0002383,7]
[365768722,1749897040624,-214.818421,0.0002383,7]
[365768724,1749897040634,-3993.383413,0.0002383,2]
[365768726,1749897040642,-151.0,0.0002383,7]
[365768728,1749897040651,-3993.383413,0.0002383,2]
[365768730,1749897040661,-170.30392,0.0002383,7]
[365768732,1749897040669,-151.0,0.0002383,7]
[365768734,1749897040679,-170.30392,0.0002383,7]
[365768736,1749897040688,-151.0,0.0002383,7]
[365768738,1749897040697,-151.0,0.0002383,7]
[365768740,1749897040707,-151.0,0.0002383,7]
[365768742,1749897040715,-460.0,0.00023832,4]
[365768744,1749897040725,-617.05,0.00023832,4]
[365768746,1749897040734,-151.0,0.00023833,7]
[365768748,1749897040744,-151.0,0.00023833,7]
[365768750,1749897040753,-151.0,0.00023833,7]
[365768752,1749897040762,-151.0,0.00023833,7]
[365768754,1749897040772,-460.0,0.00023833,4]
[365768756,1749897040781,-151.0,0.00023833,7]
[365768758,1749897040791,-151.0,0.00023833,7]
[365768760,1749897040800,-151.0,0.00023833,7]
[365768762,1749897040809,-151.0,0.00023833,7]
[365768764,1749897040819,-360.856994,0.00023833,7]
[365768766,1749897040836,-360.856994,0.00023833,7]
[365768768,1749897040846,-686.659296,0.00023833,7]
[365768770,1749897040855,-686.659296,0.00023833,7]
[365768772,1749897040864,-151.0,0.00023835,7]
[365768774,1749897040876,-1003.4,0.00023835,4]
[365768776,1749897040885,-460.0,0.00023835,4]
[365768778,1749897040895,-392.33197834,0.00023835,4]
[365768780,1749897040905,-460.0,0.00023835,4]
[365768782,1749897040914,-405.52,0.00023835,4]
[365768784,1749897040923,-460.0,0.00023835,4]
[365768786,1749897040932,-3000.0,0.0002384,2]
[365768788,1749897040941,-186.226984,0.0002384,7]
[365768790,1749897040950,-426.976756,0.0002384,7]
[365768792,1749897040960,-426.976756,0.0002384,7]
[365768794,1749897040969,-151.0,0.0002384,7]
[365768796,1749897040979,-325.950769,0.0002384,7]
[365768798,1749897040988,-325.950769,0.0002384,7]
[365768800,1749897040997,-237.722832,0.0002384,7]
[365768802,1749897041007,-237.722832,0.0002384,7]
[365768804,1749897041016,-151.0,0.0002384,7]
[365768806,1749897041026,-151.0,0.0002384,7]
[365768808,1749897041036,-151.0,0.0002384,7]
[365768810,1749897041046,-151.0,0.0002384,7]
[365768812,1749897041056,-151.0,0.0002384,7]
[365768814,1749897041065,-3000.0,0.0002385,2]
[365768816,1749897041075,-162.623748,0.0002385,7]
[365768818,1749897041084,-162.623748,0.0002385,7]
[365768820,1749897041093,-151.0,0.0002385,7]
[365768822,1749897041102,-3000.0,0.0002386,2]
[365768824,1749897041112,-330.29927154,0.00023866,10]
[365768826,1749897041121,-1745.0,0.00023867,3]
[365768828,1749897041131,-3000.0,0.0002387,2]
[365768840,1749897041140,-500.0,0.00023873,2]
[365768843,1749897041240,-295.84509687,0.00023873,2]
[365768845,1749897041250,-500.0,0.00023873,2]
[365768847,1749897041260,-500.0,0.00023873,2]
[365768849,1749897041269,-500.0,0.00023873,2]
[365768851,1749897041278,-500.0,0.00023873,2]
[365768853,1749897041287,-500.0,0.00023873,2]
[365768855,1749897041296,-500.0,0.00023873,2]
[365768857,1749897041305,-500.0,0.00023873,2]
[365768859,1749897041314,-500.0,0.00023873,2]
[365768861,1749897041323,-500.0,0.00023873,2]
[365768863,1749897041332,-500.0,0.00023873,2]
[365768865,1749897041341,-600.0,0.00023873,2]
[365768867,1749897041351,-151.0,0.00023873,7]
[365768869,1749897041360,-151.0,0.00023873,7]
[365768871,1749897041369,-3000.0,0.0002388,2]
[365768873,1749897041379,-3000.0,0.0002389,2]
[365768875,1749897041389,-160.21686064,0.00023899,2]
[365768877,1749897041398,-281357.85262331,0.000239,7]
[365768879,1749897041408,-100766.27772025,0.000239,7]
[365768881,1749897041417,-151.0,0.000239,7]
[365768883,1749897041426,-151.0,0.000239,7]
[365768885,1749897041435,-151.0,0.000239,7]
[365768887,1749897041444,-151.0,0.000239,7]
[365768889,1749897041454,-151.0,0.000239,7]
[365768891,1749897041463,-162.883414,0.000239,7]
[365768893,1749897041472,-162.883414,0.000239,7]
[365768895,1749897041482,-151.0,0.000239,7]
[365768897,1749897041493,-151.0,0.000239,7]
[365768899,1749897041502,-151.0,0.000239,7]
[365768901,1749897041511,-151.0,0.000239,7]
[365768903,1749897041521,-151.0,0.000239,7]
[365768905,1749897041529,-151.0,0.000239,7]
[365768906,1749897041539,-259.184029,0.000239,7]
[365768907,1749897041548,-259.184029,0.000239,7]
[365768908,1749897041557,-259.184029,0.000239,7]
[365768909,1749897041567,-259.184029,0.000239,7]
[365768910,1749897041576,-3000.0,0.000239,2]
[365768911,1749897041585,-151.0,0.000239,7]
[365768912,1749897041595,-151.0,0.000239,7]
[365768913,1749897041604,-151.0,0.000239,7]
[365768914,1749897041614,-151.0,0.000239,7]
[365768915,1749897041623,-162.623748,0.000239,7]
[365768916,1749897041632,-162.623748,0.000239,7]
[365768917,1749897041641,-162.623748,0.000239,7]
[365768918,1749897041651,-162.623748,0.000239,7]
[365768919,1749897041660,-426.976756,0.000239,7]
[365768920,1749897041670,-426.976756,0.000239,7]
[365768921,1749897041679,-426.976756,0.000239,7]
[365768922,1749897041689,-426.976756,0.000239,7]
[365768923,1749897041698,-1745.0,0.000239,3]
[365768924,1749897041707,-151.0,0.000239,7]
[365768925,1749897041718,-151.0,0.000239,7]
[365768926,1749897041727,-151.0,0.000239,7]
[365768927,1749897041737,-325.950769,0.000239,7]
[365768928,1749897041746,-325.950769,0.000239,7]
[365768929,1749897041755,-325.950769,0.000239,7]
[365768930,1749897041765,-325.950769,0.000239,7]
[365768931,1749897041774,-151.0,0.000239,7]
[365768932,1749897041783,-151.0,0.000239,7]
[365768933,1749897041794,-151.0,0.000239,7]
[365768934,1749897041803,-264.930281,0.000239,7]
[365768935,1749897041812,-251.57842,0.000239,7]
[365768936,1749897041824,-251.57842,0.000239,7]
[365768937,1749897041834,-251.57842,0.000239,7]
[365768938,1749897041844,-251.57842,0.000239,7]
[365768939,1749897041854,-1746.0,0.000239,3]
[365768940,1749897041864,-1746.0,0.000239,3]
[365768942,1749897041881,-164.6613268,0.000239,3]
[365768944,1749897041891,-1746.0,0.000239,3]
[365768946,1749897041900,-1746.0,0.000239,3]
[365768948,1749897041909,-1746.0,0.000239,3]
[365768950,1749897041919,-1746.0,0.000239,3]
[365768952,1749897041928,-1746.0,0.000239,3]
[365768954,1749897041937,-1746.0,0.000239,3]
[365768956,1749897041946,-1746.0,0.000239,3]
[365768958,1749897041956,-1746.0,0.000239,3]
[365768961,1749897041966,-1746.0,0.000239,3]
[365768962,1749897041975,-1746.0,0.000239,3]
[365768964,1749897041984,-171.0,0.000239,3]
[365768966,1749897041993,-1711.0,0.000239,3]
[365768968,1749897042002,-237.722832,0.000239,7]
[365768970,1749897042011,-237.722832,0.000239,7]
[365768972,1749897042020,-317.0,0.000239,3]
[365768974,1749897042030,-317.0,0.000239,3]
[365768976,1749897042039,-317.0,0.000239,3]
[365768978,1749897042048,-317.0,0.000239,3]
[365768980,1749897042057,-317.0,0.000239,3]
[365768982,1749897042066,-317.0,0.000239,3]
[365768984,1749897042075,-237.722832,0.000239,7]
[365768986,1749897042085,-237.722832,0.000239,7]
[365768988,1749897042094,-151.0,0.000239,7]
[365768990,1749897042104,-151.0,0.000239,7]
[365768992,1749897042113,-151.0,0.000239,7]
[365768994,1749897042122,-151.0,0.000239,7]
[365768996,1749897042132,-151.0,0.000239,7]
[365768998,1749897042141,-151.0,0.000239,7]
[365769000,1749897042151,-151.0,0.000239,7]
[365769002,1749897042160,-151.0,0.000239,7]
[365769004,1749897042170,-151.0,0.000239,7]
[365769006,1749897042179,-151.0,0.000239,7]
[365769009,1749897042189,-151.0,0.000239,7]
[365769010,1749897042199,-151.0,0.000239,7]
[365769012,1749897042208,-151.0,0.000239,7]
[365769014,1749897042217,-151.0,0.000239,7]
[365769016,1749897042226,-162.738473,0.000239,7]
[365769018,1749897042236,-1745.0,0.000239,3]
[365769020,1749897042245,-151.0,0.000239,7]
[365769022,1749897042255,-151.0,0.000239,7]
[365769024,1749897042264,-151.0,0.000239,7]
[365769026,1749897042273,-151.0,0.000239,7]
[365769028,1749897042282,-151.0,0.000239,7]
[365769030,1749897042292,-151.0,0.000239,7]
[365769032,1749897042302,-151.0,0.000239,7]
[365769034,1749897042311,-151.0,0.000239,7]
[365769036,1749897042321,-176.270648,0.000239,7]
[365769038,1749897042330,-176.270648,0.000239,7]
[365769040,1749897042340,-176.270648,0.000239,7]
[365769042,1749897042349,-176.270648,0.000239,7]
[365769045,1749897042359,-1746.0,0.000239,3]
[365769047,1749897042368,-1746.0,0.000239,3]
[365769049,1749897042378,-1746.0,0.000239,3]
[365769051,1749897042387,-1746.0,0.000239,3]
[365769053,1749897042396,-1746.0,0.000239,3]
[365769055,1749897042405,-1740.0,0.000239,3]
[365769057,1749897042415,-151.0,0.000239,7]
[365769059,1749897042424,-214.818421,0.000239,7]
[365769060,1749897042433,-151.0,0.000239,7]
[365769063,1749897042443,-214.818421,0.000239,7]
[365769065,1749897042455,-214.818421,0.000239,7]
[365769067,1749897042464,-214.818421,0.000239,7]
[365769069,1749897042473,-2128.18319222,0.000239,2]
[365769071,1749897042482,-151.0,0.000239,7]
[365769073,1749897042491,-151.0,0.000239,7]
[365769075,1749897042500,-239.265702,0.000239,7]
[365769077,1749897042510,-360.856994,0.000239,7]
[365769078,1749897042519,-360.856994,0.000239,7]
[365769081,1749897042529,-151.0,0.000239,7]
[365769083,1749897042539,-151.0,0.000239,7]
[365769085,1749897042548,-360.856994,0.000239,7]
[365769087,1749897042558,-360.856994,0.000239,7]
[365769089,1749897042568,-3993.383413,0.000239,2]
[365769091,1749897042577,-3993.383413,0.000239,2]
[365769092,1749897042586,-151.0,0.000239,7]
[365769094,1749897042595,-151.0,0.000239,7]
[365769096,1749897042604,-3993.383413,0.000239,2]
[365769099,1749897042615,-3993.383413,0.000239,2]
[365769100,1749897042625,-170.30392,0.000239,7]
[365769102,1749897042635,-154.875328,0.000239,7]
[365769105,1749897042644,-170.30392,0.000239,7]
[365769107,1749897042654,-170.30392,0.000239,7]
[365769109,1749897042663,-170.30392,0.000239,7]
[365769110,1749897042673,-151.0,0.000239,7]
[365769112,1749897042682,-152.89444,0.000239,7]
[365769114,1749897042691,-639.0,0.000239,2]
[365769116,1749897042701,-151.0,0.000239,7]
[365769118,1749897042710,-151.0,0.000239,7]
[365769120,1749897042720,-686.659296,0.000239,7]
[365769122,1749897042730,-686.659296,0.000239,7]
[365769124,1749897042740,-192.226297,0.000239,7]
[365769127,1749897042750,-686.659296,0.000239,7]
[365769129,1749897042759,-3000.0,0.0002391,2]
[365769130,1749897042769,-3000.0,0.0002392,2]
[365769131,1749897042779,-151.0,0.0002392,7]
[365769132,1749897042788,-151.0,0.0002392,7]
[365769133,1749897042797,-176.270648,0.0002392,7]
[365769134,1749897042806,-176.270648,0.0002392,7]
[365769135,1749897042816,-151.0,0.0002392,7]
[365769136,1749897042825,-214.818421,0.0002392,7]
[365769137,1749897042835,-214.818421,0.0002392,7]
[365769138,1749897042844,-151.0,0.0002392,7]
[365769139,1749897042855,-360.856994,0.0002392,7]
[365769140,1749897042866,-151.0,0.0002392,7]
[365769141,1749897042881,-360.856994,0.0002392,7]
[365769142,1749897042890,-3993.383413,0.0002392,2]
[365769143,1749897042901,-151.0,0.0002392,7]
[365769144,1749897042911,-3993.383413,0.0002392,2]
[365769145,1749897042921,-170.30392,0.0002392,7]
[365769146,1749897042930,-170.30392,0.0002392,7]
[365769147,1749897042940,-151.0,0.0002392,7]
[365769148,1749897042950,-686.659296,0.0002392,7]
[365769149,1749897042960,-3000.0,0.0002393,2]
[365769151,1749897042969,-3000.0,0.0002394,2]
[365769152,1749897042979,-151.0,0.0002394,7]
[365769154,1749897042989,-251.57842,0.0002394,7]
[365769155,1749897042998,-251.57842,0.0002394,7]
[365769156,1749897043007,-1090.0,0.0002394,2]
[365769157,1749897043017,-3000.0,0.0002395,2]
[365769158,1749897043026,-151.0,0.0002395,7]
[365769159,1749897043036,-3000.0,0.0002396,2]
[365769160,1749897043045,-3000.0,0.0002397,2]